fUSD/lending_fUSD_20240802
["ID","MTS","AMOUNT","RATE_DAILY","PERIOD"]
[333867354,1722582642106,-800.0,0.00013699,2]
[333867355,1722582642115,-800.0,0.00013699,2]
[333867356,1722582642125,-800.0,0.00013699,2]
[333867357,1722582642134,-800.0,0.00013699,2]
[333867358,1722582642144,-800.0,0.00013699,2]
[333867359,1722582642154,-800.0,0.00013699,2]
[333867361,1722582642164,-800.0,0.00013699,2]
[333867363,1722582642174,-800.0,0.00013699,2]
[333867365,1722582642183,-2331.67,0.00013699,2]
[333867367,1722582642193,-200.0,0.00013699,2]
[333867369,1722582642203,-2751.0,0.00013699,2]
[333867371,1722582642212,-500.0,0.00013699,2]
[333867373,1722582642222,-300.0,0.00013699,2]
[333867374,1722582642231,-300.0,0.00013699,2]
[333867376,1722582642240,-300.0,0.00013699,2]
[333867378,1722582642250,-300.0,0.00013699,2]
[333867380,1722582642259,-300.0,0.00013699,2]
[333867382,1722582642268,-300.0,0.00013699,2]
[333867384,1722582642278,-300.0,0.00013699,2]
[333867386,1722582642287,-300.0,0.00013699,2]
[333867388,1722582642296,-300.83731033,0.00013699,2]
[333867390,1722582642305,-300.0,0.00013699,2]
[333867392,1722582642315,-1250.0,0.000137,2]
[333867394,1722582642324,-4428.32583745,0.00013717,2]
[333867396,1722582642339,-2863.90028984,0.00013718,2]
[333867398,1722582642348,-500.0,0.00013788,2]
[333867400,1722582642360,-500.0,0.00013789,2]
[333867402,1722582642369,-500.0,0.00013789,2]
[333867404,1722582642379,-300.0,0.00013799,2]
[333867406,1722582642388,-300.0,0.00013799,2]
[333867408,1722582642397,-300.0,0.00013799,2]
[333867410,1722582642407,-300.0,0.00013799,2]
[333867412,1722582642416,-300.0,0.00013799,2]
[333867414,1722582642425,-504.66114571,0.00013799,2]
[333867416,1722582642435,-265048.06895,0.000138,2]
[333867418,1722582642445,-157.30196562,0.00013818,2]
[333867420,1722582642454,-155.35,0.0001389,2]
[333867422,1722582642465,-300.0,0.00013899,2]
[333867424,1722582642474,-300.0,0.00013899,2]
[333867426,1722582642483,-300.0,0.00013899,2]
[333867428,1722582642493,-300.0,0.00013899,2]
[333867430,1722582642503,-300.0,0.00013899,2]
[333867432,1722582642512,-300.0,0.00013899,2]
[333867434,1722582642522,-300.0,0.00013899,2]
[333867436,1722582642531,-300.0,0.00013899,2]
[333867438,1722582642543,-210.68434848,0.00013899,2]
[333867440,1722582642553,-5950.2341632,0.00013899,2]
[333867442,1722582642562,-477144.856459,0.000139,2]
[333867444,1722582642572,-163.53,0.00013973,2]
[333867446,1722582642581,-820.93,0.00013973,2]
[333867448,1722582642591,-184.69,0.00013973,2]
[333867450,1722582642600,-537.01570494,0.00014,2]
[333867452,1722582642612,-600.0,0.00014,2]
[333867453,1722582642621,-288.0,0.00014017,2]
[333867455,1722582642631,-21732.0,0.00014017,2]
[333867457,1722582642641,-784.728,0.00014017,2]
[333867459,1722582642650,-1073.0,0.00014017,2]
[333867461,1722582642660,-1000.0,0.00014102,2]
[333867463,1722582642670,-190.924,0.00014178,2]
[333867465,1722582642680,-621.0,0.00014178,2]
[333867467,1722582642689,-1829.0,0.00014178,2]
[333867469,1722582642699,-1255.0,0.00014178,2]
[333867470,1722582642713,-1662.0,0.00014178,2]
[333867471,1722582642722,-446.0,0.00014178,2]
[333867472,1722582642732,-1135.0,0.00014178,2]
[333867473,1722582642741,-1892.0,0.00014178,2]
[333867474,1722582642751,-550.0,0.00014178,2]
[333867475,1722582642761,-150.207,0.00014178,2]
[333867476,1722582642770,-150.541,0.00014178,2]
[333867477,1722582642780,-3287.0,0.00014178,2]
[333867478,1722582642790,-1301.0,0.00014178,2]
[333867479,1722582642799,-823.0,0.00014467,2]
[333867481,1722582642809,-400.0,0.00014476,2]
[333867482,1722582642818,-4428.32583745,0.00014656,2]
[333867483,1722582642827,-300.0,0.00014793,2]
[333867484,1722582642837,-300.0,0.00014793,2]
[333867485,1722582642846,-300.0,0.00014793,2]
[333867486,1722582642858,-300.0,0.00014793,2]
[333867487,1722582642868,-300.0,0.00014793,2]
[333867488,1722582642877,-300.0,0.00014793,2]
[333867489,1722582642886,-300.0,0.00014793,2]
[333867490,1722582642895,-300.0,0.00014793,2]
[333867491,1722582642904,-300.0,0.00014793,2]
[333867492,1722582642914,-300.0,0.00014793,2]
[333867493,1722582642923,-300.0,0.00014793,2]
[333867494,1722582642932,-300.0,0.00014793,2]
[333867495,1722582642942,-300.0,0.00014793,2]
[333867496,1722582642951,-300.0,0.00014793,2]
[333867497,1722582642961,-300.0,0.00014793,2]
[333867498,1722582642970,-2500.0,0.00014794,4]
[333867499,1722582642979,-2500.0,0.00014794,4]
[333867501,1722582642988,-2500.0,0.00014794,4]
[333867503,1722582642997,-2500.0,0.00014794,4]
[333867505,1722582643007,-2500.0,0.00014794,4]
[333867506,1722582643016,-2500.0,0.00014794,4]
[333867508,1722582643025,-2500.0,0.00014794,4]
[333867510,1722582643034,-2500.0,0.00014794,4]
[333867512,1722582643044,-2500.0,0.00014794,4]
[333867513,1722582643054,-2500.0,0.00014794,4]
[333867514,1722582643063,-2500.0,0.00014794,4]
[333867515,1722582643072,-2500.0,0.00014794,4]
[333867516,1722582643081,-2500.0,0.00014794,4]
[333867517,1722582643090,-2500.0,0.00014794,4]
[333867518,1722582643100,-2500.0,0.00014794,4]
[333867519,1722582643112,-2500.0,0.00014794,4]
[333867520,1722582643121,-2500.0,0.00014794,4]
[333867521,1722582643131,-2500.0,0.00014794,4]
[333867522,1722582643140,-2500.0,0.00014794,4]
[333867523,1722582643150,-2500.0,0.00014794,4]
[333867524,1722582643159,-2500.0,0.00014794,4]
[333867525,1722582643169,-1115.65264708,0.00014794,4]
[333867526,1722582643180,-150.0,0.00014795,2]
[333867527,1722582643190,-150.47,0.00014795,2]
[333867528,1722582643200,-712.1,0.00014795,2]
[333867529,1722582643209,-150.0,0.00014795,2]
[333867530,1722582643219,-301.58,0.00014795,2]
[333867531,1722582643229,-300.61,0.00014795,2]
[333867532,1722582643238,-425.44,0.00014795,2]
[333867534,1722582643248,-150.0,0.00014795,2]
[333867536,1722582643258,-1060.56,0.00014795,2]
[333867538,1722582643267,-150.0,0.00014795,2]
[333867540,1722582643276,-150.0,0.00014795,2]
[333867542,1722582643286,-2201.23488205,0.000149,5]
[333867543,1722582643296,-633.77887273,0.000149,2]
[333867544,1722582643306,-2000.0,0.00015,2]
[333867545,1722582643317,-623.71755966,0.00015,2]
[333867546,1722582643327,-153.38062596,0.00015,4]
[333867547,1722582643336,-3471.53969509,0.00015,2]
[333867548,1722582643346,-1261.0,0.00015,2]
[333867549,1722582643359,-494.0,0.00015,2]
[333867550,1722582643369,-300.0,0.00015068,2]
[333867551,1722582643378,-500.0,0.000151,2]
[333867552,1722582643387,-170.81662989,0.00015126,2]
[333867553,1722582643397,-1000.0,0.00015486,2]
[333867554,1722582643406,-1000.0,0.00015512,2]
[333867555,1722582643415,-425.87,0.00015562,2]
[333867556,1722582643425,-1058.94,0.00015562,2]
[333867557,1722582643435,-425.87,0.00015562,2]
[333867558,1722582643444,-4428.32583745,0.00015596,2]
[333867559,1722582643454,-150.0,0.00015616,2]
[333867560,1722582643464,-300.0,0.00015616,2]
[333867561,1722582643474,-150.0,0.00015616,2]
[333867562,1722582643483,-167.0,0.00015831,2]
[333867563,1722582643492,-167.03,0.00015831,2]
[333867564,1722582643502,-167.0,0.00015831,2]
[333867566,1722582643511,-3000.0,0.0001589,2]
[333867568,1722582643521,-1152.0,0.00015899,2]
[333867569,1722582643531,-5628.0,0.000159,2]
[333867570,1722582643540,-400.0,0.00015924,2]
[333867571,1722582643549,-1000.0,0.00016,16]
[333867573,1722582643559,-552.44678633,0.00016,50]
[333867574,1722582643568,-2000.0,0.00016,2]
[333867575,1722582643577,-650.0,0.00016,2]
[333867576,1722582643586,-2000.0,0.0001601,2]
[333867577,1722582643596,-2000.0,0.0001602,2]
[333867578,1722582643608,-3425.53,0.0001603,2]
[333867579,1722582643618,-3157.70317254,0.00016102,2]
[333867580,1722582643627,-718.13742074,0.00016113,2]
[333867581,1722582643637,-9999.99,0.00016116,2]
[333867582,1722582643648,-152.0,0.00016235,3]
[333867583,1722582643658,-1000.0,0.00016293,2]
[333867584,1722582643667,-300.0,0.00016438,2]
[333867585,1722582643678,-706.94,0.00016438,2]
[333867586,1722582643688,-5402.2703225,0.00016441,2]
[333867587,1722582643698,-167.0,0.00016484,2]
[333867588,1722582643714,-4428.32583745,0.00016535,2]
[333867589,1722582643725,-2863.90028984,0.00016535,2]
[333867590,1722582643735,-1762.37384286,0.00016699,2]
[333867591,1722582643746,-162.52,0.00016712,2]
[333867592,1722582643756,-152.0,0.00016915,4]
[333867593,1722582643766,-1000.0,0.00016922,2]
[333867594,1722582643776,-3081.22128956,0.00016948,2]
[333867595,1722582643787,-2842.01624466,0.00016949,2]
[333867596,1722582643797,-1000.0,0.00017,17]
[333867597,1722582643807,-208.0933703,0.00017,2]
[333867598,1722582643817,-2145.53052845,0.00017004,2]
[333867599,1722582643826,-236.40881395,0.00017004,2]
[333867600,1722582643836,-1405.82884267,0.00017004,2]
[333867602,1722582643845,-288.0,0.00017017,2]
[333867604,1722582643856,-21732.0,0.00017017,2]
[333867606,1722582643867,-150.0,0.000171,2]
[333867608,1722582643876,-6054.52253924,0.000171,3]
[333867610,1722582643886,-167.0,0.00017137,2]
[333867612,1722582643896,-150.0,0.00017178,2]
[333867614,1722582643905,-699.092,0.00017178,2]
[333867616,1722582643915,-260.611,0.00017178,2]
[333867617,1722582643924,-1135.0,0.00017178,2]
[333867619,1722582643934,-1892.0,0.00017178,2]
[333867621,1722582643943,-1397.701,0.00017178,2]
[333867623,1722582643953,-170.81662989,0.00017239,2]
[333867625,1722582643963,-400.0,0.00017372,2]
[333867627,1722582643972,-414.42088347,0.0001738,2]
[333867629,1722582643983,-1622.03166062,0.0001738,2]
[333867631,1722582643993,-1082.49306175,0.0001747,2]
[333867633,1722582644003,-1613.0,0.00017473,2]
[333867635,1722582644013,-4428.32583745,0.00017474,2]
[333867637,1722582644022,-215.982006,0.00017474,2]
[333867639,1722582644032,-154.691468,0.00017474,2]
[333867641,1722582644041,-215.982006,0.00017474,2]
[333867643,1722582644051,-151.0,0.00017474,2]
[333867645,1722582644061,-5285.845973,0.00017474,2]
[333867648,1722582644071,-5285.845973,0.00017474,2]
[333867649,1722582644080,-151.0,0.00017474,2]
[333867652,1722582644090,-151.0,0.00017474,2]
[333867653,1722582644100,-151.0,0.00017474,2]
[333867655,1722582644111,-151.0,0.00017474,2]
[333867657,1722582644121,-151.0,0.00017474,2]
[333867660,1722582644130,-151.0,0.00017474,2]
[333867662,1722582644140,-151.0,0.00017474,2]
[333867664,1722582644150,-151.0,0.00017474,2]
[333867666,1722582644160,-1554.0,0.000175,2]
[333867668,1722582644171,-230.41230275,0.00017533,2]
[333867670,1722582644180,-1256.32482105,0.00017533,2]
[333867672,1722582644190,-152.0,0.00017595,5]
[333867673,1722582644199,-151.0,0.00017607,2]
[333867675,1722582644210,-151.0,0.00017607,2]
[333867677,1722582644222,-151.0,0.00017607,2]
[333867679,1722582644231,-151.0,0.00017607,2]
[333867681,1722582644241,-306.51095069,0.00017608,2]
[333867683,1722582644251,-151.0,0.00017616,2]
[333867685,1722582644260,-151.0,0.00017616,2]
[333867687,1722582644270,-151.0,0.00017616,2]
[333867689,1722582644280,-151.0,0.00017616,2]
[333867691,1722582644290,-2433.11657,0.00017616,2]
[333867693,1722582644299,-2433.11657,0.00017616,2]
[333867695,1722582644309,-238.691102,0.00017616,2]
[333867696,1722582644319,-238.691102,0.00017616,2]
[333867698,1722582644328,-157.952084,0.00017616,2]
[333867700,1722582644337,-151.0,0.00017616,2]
[333867702,1722582644347,-157.952084,0.00017616,2]
[333867704,1722582644359,-151.0,0.00017616,2]
[333867706,1722582644368,-151.0,0.00017616,2]
[333867708,1722582644378,-151.0,0.00017616,2]
[333867710,1722582644388,-156.37986,0.00017616,2]
[333867712,1722582644398,-156.37986,0.00017616,2]
[333867715,1722582644407,-293.683094,0.00017636,2]
[333867717,1722582644417,-233.551866,0.00017636,2]
[333867719,1722582644427,-171.902742,0.00017636,2]
[333867721,1722582644436,-233.551866,0.00017636,2]
[333867723,1722582644446,-151.0,0.00017636,2]
[333867725,1722582644455,-228.425757,0.00017636,2]
[333867727,1722582644465,-1472.967308,0.00017636,2]
[333867729,1722582644474,-1472.967308,0.00017636,2]
[333867731,1722582644484,-600.0,0.00017636,2]
[333867733,1722582644494,-1297.82538446,0.00017636,2]
[333867735,1722582644504,-370.21098026,0.00017636,2]
[333867737,1722582644514,-1107.25,0.00017728,2]
[333867739,1722582644524,-1050.45190049,0.00017739,40]
[333867741,1722582644534,-1725.0,0.00017782,2]
[333867743,1722582644544,-167.0,0.00017791,2]
[333867745,1722582644554,-155.0,0.00017799,2]
[333867747,1722582644563,-2500.0,0.000178,2]
[333867749,1722582644573,-650.97560109,0.00017807,2]
[333867751,1722582644583,-1388.114607,0.00017808,2]
[333867753,1722582644592,-1388.114607,0.00017808,2]
[333867755,1722582644603,-151.0,0.00017808,2]
[333867756,1722582644614,-1266.801572,0.00017808,2]
[333867759,1722582644624,-1266.801572,0.00017808,2]
[333867760,1722582644633,-754.355234,0.00017808,2]
[333867762,1722582644643,-151.0,0.00017808,2]
[333867764,1722582644653,-151.0,0.00017808,2]
[333867766,1722582644663,-754.355234,0.00017808,2]
[333867767,1722582644673,-159.398392,0.00017808,2]
[333867768,1722582644683,-151.0,0.00017808,2]
[333867769,1722582644692,-159.398392,0.00017808,2]
[333867770,1722582644707,-151.0,0.00017808,2]
[333867771,1722582644717,-151.0,0.00017808,2]
[333867772,1722582644727,-7379.71,0.00017808,2]
[333867773,1722582644737,-233.48,0.0001789,30]
[333867774,1722582644748,-600.1711954,0.00017898,2]
[333867776,1722582644758,-298.56764993,0.00017898,2]
[333867778,1722582644768,-1000.0,0.000179,2]
[333867780,1722582644779,-10000.0,0.000179,2]
[333867782,1722582644789,-1000.0,0.000179,2]
[333867784,1722582644799,-15215.09964124,0.00017988,2]
[333867786,1722582644809,-155.35,0.0001799,2]
[333867788,1722582644819,-155.35,0.0001799,2]
[333867790,1722582644829,-155.35,0.0001799,2]
[333867792,1722582644839,-155.35,0.0001799,2]
[333867794,1722582644849,-155.35,0.0001799,2]
[333867796,1722582644861,-155.35,0.0001799,2]
[333867797,1722582644871,-155.35,0.0001799,2]
[333867798,1722582644881,-300.0,0.00017999,2]
[333867799,1722582644890,-300.0,0.00017999,2]
[333867800,1722582644900,-162.219386,0.00017999,2]
[333867801,1722582644909,-151.0,0.00017999,2]
[333867802,1722582644919,-151.0,0.00017999,2]
[333867803,1722582644929,-151.0,0.00017999,2]
[333867804,1722582644939,-151.0,0.00017999,2]
[333867805,1722582644949,-151.0,0.00017999,2]
[333867806,1722582644958,-367.790102,0.00017999,2]
[333867807,1722582644968,-151.0,0.00017999,2]
[333867808,1722582644977,-367.790102,0.00017999,2]
[333867809,1722582644987,-151.0,0.00017999,2]
[333867810,1722582644997,-151.0,0.00017999,2]
[333867811,1722582645007,-150.0,0.00017999,2]
[333867812,1722582645017,-10000.0,0.00017999,2]
[333867813,1722582645027,-10000.0,0.00017999,2]
[333867814,1722582645037,-4056.24231227,0.00017999,2]
[333867815,1722582645047,-3186366.20512094,0.00018,5]
[333867816,1722582646445,-281576.61977177,0.00018,5]
[333867817,1722582646457,-214328.68483012,0.00018,5]
[333867818,1722582646480,-1221.64794699,0.00018,5]
[333867819,1722582646491,-66894.59240545,0.00018,5]
[333867820,1722582646503,-173700.62690797,0.00018,5]
[333867821,1722582646514,-135391.57917228,0.00018,5]
[333867822,1722582646526,-924.899999,0.00018,5]
[333867823,1722582646537,-1642.8995,0.00018,5]
[333867824,1722582646697,-160.24817792,0.0001367,2]
[333867825,1722582646709,-600.0,0.00017636,2]
[333867826,1722582646719,-12608.63396526,0.00018,5]
[333867827,1722582646730,-302.0,0.00018,5]
[333867828,1722582646742,-1159.53267662,0.00018,5]
[333867829,1722582646766,-572.21,0.00018,5]
[333867830,1722582646779,-3224.73762716,0.00018,5]
[333867831,1722582646791,-263.95605343,0.00018,5]
[333867832,1722582646802,-300.0,0.00018,5]
[333867833,1722582646813,-6029.49838837,0.00018,5]
[333867834,1722582646841,-13289.23339859,0.00018,5]
[333867835,1722582646856,-744.5,0.00018,5]
[333867836,1722582646867,-6584.2221912,0.00018,5]
[333867837,1722582646879,-293.56,0.00018,5]
[333867838,1722582646964,347.1,9.397e-05,2]
[333867839,1722582647068,-347.1,0.00011661,2]
[333867840,1722582647079,-961.13083766,0.00013333,2]
[333867841,1722582647089,-347.1,0.00013925,2]
[333867842,1722582647099,-1309.0,0.000141,2]
[333867843,1722582647110,-150.0,0.00014795,2]
[333867844,1722582647120,-347.1,0.00016189,2]
[333867845,1722582647129,-314.85915474,0.00018,5]
[333867846,1722582647142,-2192.36880359,0.00018,5]
[333867847,1722582647153,-1400.13240077,0.00018,5]
[333867848,1722582647165,-28944.85528841,0.00018,5]
[333867849,1722582647176,-1597.3,0.00018,5]
[333867850,1722582647188,-204245.00840248,0.00018,5]
[333867851,1722582647205,-8137.84394307,0.00018,5]
[333867852,1722582647217,-604.75159056,0.00018,5]
[333867853,1722582647229,-3963.32370779,0.00018,5]
[333867856,1722582647352,-1892.79675344,0.00018,5]
[333867857,1722582647362,-535.42333167,0.00018,2]
[333867859,1722582647371,-372.26052401,0.00018,2]
[333867861,1722582647381,-1165.60514978,0.00018,2]
[333867863,1722582647391,-151.0,0.00018,2]
[333867865,1722582647400,-151.0,0.00018,2]
[333867867,1722582647410,-151.0,0.00018,2]
[333867869,1722582647420,-160.027776,0.00018,2]
[333867871,1722582647429,-151.0,0.00018,2]
[333867873,1722582647439,-151.0,0.00018,2]
[333867875,1722582647448,-100.57975575,0.00018,2]
[333867877,1722582647461,-159.67787525,0.00018,2]
[333867879,1722582647471,-185.77296,0.00018,2]
[333867881,1722582647480,-169.79916475,0.00018,2]
[333867883,1722582647493,-15.97379525,0.00018,2]
[333867885,1722582647502,-168.316054,0.00018,2]
[333867887,1722582647511,-151.0,0.00018,2]
[333867889,1722582647521,-168.316054,0.00018,2]
[333867891,1722582647530,-151.0,0.00018,2]
[333867892,1722582647540,-151.0,0.00018,2]
[333867894,1722582647549,-151.274283,0.00018,2]
[333867896,1722582647559,-151.0,0.00018,2]
[333867898,1722582647568,-151.0,0.00018,2]
[333867900,1722582647578,-149.94155557,0.00018,2]
[333867902,1722582647590,-1.05844443,0.00018,2]
[333867904,1722582647600,-151.0,0.00018,2]
[333867906,1722582647613,-153.463172,0.00018,2]
[333867908,1722582647622,-153.463172,0.00018,2]
[333867910,1722582647632,-281.353655,0.00018,2]
[333867912,1722582647644,-87.92420528,0.00018,2]
[333867914,1722582647658,-63.07579472,0.00018,2]
[333867916,1722582647669,-281.353655,0.00018,2]
[333867918,1722582647679,-308.97354,0.00018,2]
[333867920,1722582647690,-308.97354,0.00018,2]
[333867922,1722582647704,-151.0,0.00018,2]
[333867924,1722582647724,-151.0,0.00018,2]
[333867926,1722582647745,-151.0,0.00018,2]
[333867928,1722582647764,-151.0,0.00018,2]
[333867930,1722582647774,-130.62347027,0.00018,2]
[333867932,1722582647786,-20.37652973,0.00018,2]
[333867934,1722582647795,-151.0,0.00018,2]
[333867936,1722582647805,-151.0,0.00018,2]
[333867938,1722582647815,-27.83971454,0.00018,2]
[333867941,1722582647834,-123.16028546,0.00018,2]
[333867943,1722582647843,-151.0,0.00018,2]
[333867945,1722582647857,-151.0,0.00018,2]
[333867947,1722582647866,-151.0,0.00018,2]
[333867949,1722582647877,-151.0,0.00018,2]
[333867951,1722582647886,-240.439378,0.00018,2]
[333867952,1722582647895,-151.474801,0.00018,2]
[333867954,1722582647905,-240.439378,0.00018,2]
[333867956,1722582647914,-159.142412,0.00018,2]
[333867958,1722582647924,-151.0,0.00018,2]
[333867960,1722582647934,-159.142412,0.00018,2]
[333867962,1722582647944,-151.0,0.00018,2]
[333867964,1722582647953,-151.0,0.00018,2]
[333867966,1722582647963,-172.298925,0.00018,2]
[333867968,1722582647972,-151.0,0.00018,2]
[333867969,1722582647982,-172.298925,0.00018,2]
[333867970,1722582647991,-151.0,0.00018,2]
[333867971,1722582648001,-404.056518,0.00018,2]
[333867972,1722582648010,-151.0,0.00018,2]
[333867973,1722582648020,-0.11088554,0.00018,2]
[333867974,1722582648032,-403.94563246,0.00018,2]
[333867975,1722582648041,-151.0,0.00018,2]
[333867976,1722582648049,-136.20675908,0.00018,2]
[333867977,1722582648060,-143.83787092,0.00018,2]
[333867978,1722582648069,-280.04463,0.00018,2]
[333867979,1722582648079,-820.40648,0.00018,2]
[333867980,1722582648088,-151.0,0.00018,2]
[333867981,1722582648097,-820.40648,0.00018,2]
[333867982,1722582648111,-151.0,0.00018,2]
[333867983,1722582648120,-204.924207,0.00018,2]
[333867984,1722582648130,-204.924207,0.00018,2]
[333867985,1722582648139,-151.0,0.00018,2]
[333867986,1722582648149,-151.0,0.00018,2]
[333867987,1722582648158,-289.658822,0.00018,2]
[333867988,1722582648167,-213.886844,0.00018,2]
[333867989,1722582648177,-38.59990169,0.00018,2]
[333867990,1722582648189,-251.05892031,0.00018,2]
[333867991,1722582648199,-213.886844,0.00018,2]
[333867992,1722582648208,-151.0,0.00018,2]
[333867993,1722582648217,-151.0,0.00018,2]
[333867994,1722582648227,-454.77423569,0.00018,2]
[333867995,1722582648239,-456.80005735,0.00018,2]
[333867996,1722582648251,-357.53001,0.00018,2]
[333867997,1722582788643,800.0,0.00026986,120]
[333868000,1722582856663,400.0,0.00025015,120]
[333868001,1722582974162,800.0,0.00026986,120]
[333868002,1722583025074,10105.92,0.00027,120]
[333868003,1722583144536,800.0,0.00026986,120]
[333868004,1722583263633,800.0,0.00026986,120]
[333868023,1722583831714,-885.66516749,0.00010899,2]
[333868024,1722583831724,-150.0,0.00010899,2]
[333868025,1722583831733,-12994.15591625,0.00010899,2]
[333868026,1722583831743,-2157.3516015,0.000109,2]
[333868027,1722583831754,-3324.45,0.000109,2]
[333868028,1722583831766,-3223.35,0.000109,2]
[333868029,1722583831777,-281.19172138,0.000109,2]
[333868030,1722583831788,-643.01340339,0.000109,2]
[333868031,1722583831799,-31324.01937373,0.000109,2]
[333868032,1722583831809,-500.0,0.000109,2]
[333868033,1722583831819,-1000.0,0.000109,2]
[333868034,1722583831828,-2238.57780507,0.00010989,2]
[333868035,1722583831840,-1189.73079971,0.00010989,2]
[333868036,1722583831851,-2420.67069498,0.00010989,2]
[333868037,1722583831863,-261.15578167,0.00010989,2]
[333868038,1722583831874,-1444.14581354,0.00010989,2]
[333868039,1722583831904,-1000.37172,0.00010989,2]
[333868040,1722583831915,-775.19666386,0.00010989,2]
[333868041,1722583831927,-1635.68804114,0.00010989,2]
[333868042,1722583831938,-1156.33265656,0.00010989,2]
[333868043,1722583831949,-4196.1,0.00010989,2]
[333868044,1722583831960,-341.34701288,0.00010989,2]
[333868046,1722583831971,-1022.98488966,0.00010989,2]
[333868048,1722583831983,-3256.74546623,0.00010989,2]
[333868049,1722583831994,-14355.45898269,0.00010989,2]
[333868050,1722583832010,-251.88644517,0.00010989,2]
[333868051,1722583832021,-5438.39379598,0.00010989,2]
[333868052,1722583832033,-300.3,0.00010989,2]
[333868053,1722583832046,-61399.21169561,0.00010989,2]
[333868054,1722583832056,-5247.75406773,0.00010997,2]
[333868055,1722583832066,-975.46198766,0.00010999,2]
[333868056,1722583832076,-250.0,0.00011,2]
[333868057,1722583832087,-12994.1559162,0.00011928,2]
[333868058,1722583832100,-885.66516749,0.00011929,2]
[333868059,1722583832110,-550.0,0.00012,2]
[333868060,1722583832126,-160.06,0.0001289,2]
[333868061,1722583832136,-299.99,0.0001289,2]
[333868062,1722583832147,-885.66516749,0.0001296,2]
[333868063,1722583832164,-5037.42854306,0.0001305,2]
[333868065,1722583832174,-499.99,0.0001305,2]
[333868067,1722583832185,-1000.0,0.000135,2]
[333868069,1722583832195,-3750.45538441,0.000137,2]
[333868071,1722583832205,-885.66516749,0.0001399,2]
[333868073,1722583832214,-307.56,0.00013997,2]
[333868075,1722583832224,-600.0,0.00014,2]
[333868077,1722583832234,-266.6519894,0.00014,2]
[333868078,1722583832244,-205.0,0.00014878,2]
[333868079,1722583832254,-1383.245,0.00014878,2]
[333868080,1722583832263,-174.333,0.00014878,2]
[333868081,1722583832274,-21732.0,0.00014878,2]
[333868082,1722583832283,-1436.41969094,0.000149,2]
[333868083,1722583832292,-7281.68792871,0.00014988,2]
[333868084,1722583832301,-5066.0,0.00015,2]
[333868085,1722583832311,-1928.54141169,0.00015,2]
[333868086,1722583832321,-596.44364631,0.00015,2]
[333868087,1722583832331,-885.66516749,0.00015021,2]
[333868088,1722583832340,-500.0,0.000151,2]
[333868089,1722583832350,-458.81,0.00015323,2]
[333868090,1722583832360,-2751.0,0.00015426,2]
[333868091,1722583832381,-200.0,0.00015605,2]
[333868092,1722583832390,-242.44,0.00015851,2]
[333868093,1722583832400,-999.99,0.00015899,2]
[333868094,1722583832410,-293.95,0.000159,2]
[333868095,1722583832419,-327.585,0.0001593,2]
[333868096,1722583832429,-2000.0,0.00016,2]
[333868097,1722583832439,-650.0,0.00016,2]
[333868098,1722583832449,-2000.0,0.0001601,2]
[333868099,1722583832459,-2000.0,0.0001602,2]
[333868100,1722583832469,-3425.53,0.0001603,2]
[333868101,1722583832480,-306.51095069,0.00016033,2]